fUSD/lending_fUSD_20260116
["ID","MTS","AMOUNT","RATE_DAILY","PERIOD"]
[402207454,1768601442950,-570.35,0.00016803,2]
[402207455,1768601442959,-500.0,0.00016822,2]
[402207456,1768601442968,-566.80876335,0.0001683,2]
[402207457,1768601442977,-1000.0,0.0001684,2]
[402207458,1768601442987,-500.0,0.00016876,2]
[402207459,1768601442996,-500.0,0.00016904,2]
[402207460,1768601443005,-182.80812274,0.00016914,2]
[402207461,1768601443014,-500.0,0.00016931,2]
[402207462,1768601443023,-2000.0,0.00016938,2]
[402207463,1768601443033,-1733.2975304,0.00016979,2]
[402207464,1768601443042,-500.0,0.00016986,2]
[402207465,1768601443052,-6776.56895766,0.00016988,2]
[402207466,1768601443061,-3559.34559818,0.00016988,2]
[402207467,1768601443070,-500.0,0.00017,5]
[402207468,1768601443079,-500.0,0.00017,2]
[402207469,1768601443088,-509.57915422,0.00017,2]
[402207470,1768601443098,-500.0,0.00017,2]
[402207471,1768601443108,-500.0,0.00017,2]
[402207472,1768601443117,-500.0,0.00017,2]
[402207473,1768601443126,-500.0,0.00017,2]
[402207474,1768601443134,-5003.03273076,0.00017014,2]
[402207475,1768601443143,-5000.0,0.00017014,2]
[402207476,1768601443152,-5000.0,0.00017014,2]
[402207477,1768601443161,-5000.0,0.00017014,2]
[402207478,1768601443170,-5000.0,0.00017014,2]
[402207479,1768601443179,-500.0,0.00017041,2]
[402207480,1768601443188,-289.0,0.00017069,2]
[402207481,1768601443197,-540.0,0.00017096,2]
[402207482,1768601443207,-250.0,0.0001716,2]
[402207483,1768601443218,-289.0,0.00017163,2]
[402207484,1768601443228,-289.0,0.00017185,2]
[402207485,1768601443239,-187.78006525,0.00017232,2]
[402207486,1768601443251,-617.40005154,0.00017232,2]
[402207487,1768601443262,-156.52,0.00017238,2]
[402207488,1768601443272,-156.52,0.00017301,2]
[402207489,1768601443282,-168.0,0.00017301,2]
[402207490,1768601443291,-4537.0,0.00017307,2]
[402207491,1768601443300,-155.53654206,0.00017336,2]
[402207492,1768601443309,-1000.0,0.000174,2]
[402207493,1768601443319,-5000.0,0.000174,6]
[402207494,1768601443328,-150.0,0.00017416,3]
[402207496,1768601443337,-1000.0,0.00017424,2]
[402207497,1768601443346,-150.0,0.00017429,2]
[402207498,1768601443355,-6776.56895766,0.00017444,2]
[402207499,1768601443366,-3559.34559818,0.00017444,2]
[402207500,1768601443375,-168.0,0.00017445,2]
[402207501,1768601443384,-570.35,0.00017461,2]
[402207502,1768601443393,-2000.0,0.000175,2]
[402207503,1768601443403,-1000.0,0.000175,2]
[402207504,1768601443412,-6700.0,0.000175,6]
[402207505,1768601443422,-642.94,0.00017505,2]
[402207506,1768601443431,-334.5472959,0.00017505,2]
[402207507,1768601443442,-1239.0,0.00017505,2]
[402207508,1768601443453,-150.0,0.00017514,2]
[402207509,1768601443462,-1001.4120821,0.00017516,2]
[402207510,1768601443473,-1143.91969658,0.00017516,2]
[402207511,1768601443482,-1021.86925554,0.00017516,2]
[402207512,1768601443491,-1424.72014701,0.00017516,2]
[402207513,1768601443500,-736.0,0.00017518,2]
[402207514,1768601443509,-1406.0,0.00017553,2]
[402207515,1768601443520,-1331.0,0.00017553,2]
[402207516,1768601443531,-1268.0,0.00017553,2]
[402207517,1768601443541,-412.0,0.00017553,2]
[402207518,1768601443550,-313.03950746,0.00017554,2]
[402207519,1768601443559,-500.0,0.00017562,2]
[402207520,1768601443568,-2747.2,0.00017584,2]
[402207521,1768601443577,-915.0,0.00017587,2]
[402207522,1768601443586,-1202.0,0.00017587,2]
[402207523,1768601443595,-4824.0,0.00017587,2]
[402207524,1768601443608,-566.0,0.00017587,2]
[402207525,1768601443617,-2439.0,0.00017587,2]
[402207526,1768601443627,-1000.0,0.000176,2]
[402207527,1768601443636,-8400.0,0.000176,6]
[402207528,1768601443645,-2747.2,0.00017622,2]
[402207529,1768601443655,-2170.30482224,0.0001764,2]
[402207530,1768601443664,-2747.2,0.0001766,2]
[402207531,1768601443673,-150.0,0.00017673,2]
[402207532,1768601443682,-2747.2,0.00017697,2]
[402207533,1768601443692,-1000.0,0.00017698,2]
[402207534,1768601443702,-1600.0,0.000177,6]
[402207535,1768601443712,-1000.0,0.00017726,2]
[402207536,1768601443722,-600.0,0.00017726,7]
[402207537,1768601443732,-1500.0,0.00017726,7]
[402207538,1768601443741,-1000.0,0.0001773,2]
[402207539,1768601443751,-150.0,0.00017731,2]
[402207540,1768601443760,-2747.2,0.00017735,2]
[402207541,1768601444027,-1000.0,0.00017751,2]
[402207542,1768601444039,-1000.0,0.00017756,2]
[402207543,1768601444049,-1000.0,0.00017758,2]
[402207544,1768601444060,-1000.0,0.00017761,2]
[402207545,1768601444069,-2747.2,0.00017773,2]
[402207546,1768601444079,-1000.0,0.00017774,2]
[402207547,1768601444088,-1000.0,0.00017774,2]
[402207548,1768601444099,-1000.0,0.00017776,2]
[402207549,1768601444108,-1000.0,0.00017777,2]
[402207550,1768601444120,-1000.0,0.00017779,2]
[402207551,1768601444130,-194.72792766,0.0001778,2]
[402207552,1768601444140,-640.24385345,0.0001778,2]
[402207553,1768601444152,-165.78988918,0.00017783,7]
[402207554,1768601444162,-292.47301622,0.00017783,7]
[402207555,1768601444171,-437.5221406,0.00017783,7]
[402207556,1768601444180,-591.9804,0.00017783,7]
[402207557,1768601444190,-1000.0,0.00017784,2]
[402207558,1768601444199,-1000.0,0.00017792,2]
[402207559,1768601444208,-1000.0,0.00017797,2]
[402207560,1768601444218,-1000.0,0.000178,2]
[402207561,1768601444227,-1600.0,0.000178,6]
[402207562,1768601444237,-150.0,0.00017801,2]
[402207563,1768601444247,-213.0,0.00017806,2]
[402207564,1768601444257,-265.0,0.00017806,2]
[402207565,1768601444266,-150.0,0.00017806,2]
[402207566,1768601444275,-200.0,0.00017806,2]
[402207567,1768601444284,-250.0,0.00017806,2]
[402207568,1768601444294,-226.84,0.00017806,2]
[402207569,1768601444303,-194.531,0.00017806,2]
[402207570,1768601444315,-150.0,0.00017806,2]
[402207571,1768601444324,-157.526,0.00017806,2]
[402207572,1768601444333,-250.0,0.00017806,2]
[402207573,1768601444343,-150.0,0.00017806,2]
[402207574,1768601444352,-150.248,0.00017806,2]
[402207575,1768601444361,-151.0,0.00017806,2]
[402207576,1768601444371,-3471.0,0.00017806,2]
[402207577,1768601444380,-500.0,0.00017808,2]
[402207578,1768601444389,-440.0,0.00017808,2]
[402207579,1768601444398,-2747.2,0.00017811,2]
[402207580,1768601444409,-2000.0,0.0001782,2]
[402207581,1768601444419,-2000.0,0.0001782,2]
[402207582,1768601444435,-1000.0,0.00017823,2]
[402207583,1768601444445,-1000.0,0.00017829,2]
[402207584,1768601444454,-1000.0,0.0001783,2]
[402207585,1768601444465,-1000.0,0.00017839,2]
[402207586,1768601444474,-328.90134141,0.00017839,2]
[402207587,1768601444483,-1000.0,0.0001784,2]
[402207588,1768601444493,-1000.0,0.0001784,2]
[402207589,1768601444506,-789.77249293,0.00017842,2]
[402207590,1768601444517,-1000.0,0.00017849,2]
[402207591,1768601444527,-2747.2,0.00017849,2]
[402207592,1768601444537,-1000.0,0.00017855,2]
[402207593,1768601444546,-200.0,0.00017856,2]
[402207594,1768601444555,-1000.0,0.00017859,2]
[402207595,1768601444565,-500.0,0.00017863,2]
[402207596,1768601444574,-440.0,0.00017863,2]
[402207597,1768601444583,-1000.0,0.00017864,2]
[402207598,1768601444593,-1000.0,0.00017865,2]
[402207599,1768601444603,-150.0,0.00017869,2]
[402207600,1768601444612,-168.0,0.0001787,2]
[402207601,1768601444622,-1000.0,0.00017874,2]
[402207602,1768601444631,-1000.0,0.00017878,2]
[402207603,1768601444641,-2747.2,0.00017887,2]
[402207604,1768601444651,-1000.0,0.00017888,2]
[402207605,1768601444662,-150.0,0.00017897,2]
[402207606,1768601444671,-150.0,0.00017897,2]
[402207607,1768601444680,-1000.0,0.00017899,2]
[402207608,1768601444690,-10000.0,0.000179,2]
[402207609,1768601444711,-1600.0,0.000179,6]
[402207610,1768601444721,-2338.70119325,0.000179,2]
[402207611,1768601444730,-2338.70119318,0.000179,2]
[402207612,1768601444739,-2338.70119318,0.000179,2]
[402207613,1768601444749,-2338.70119318,0.000179,2]
[402207614,1768601444758,-2338.70119318,0.000179,2]
[402207615,1768601444768,-2338.70119318,0.000179,2]
[402207616,1768601444777,-2338.70119318,0.000179,2]
[402207617,1768601444786,-2338.70119318,0.000179,2]
[402207618,1768601444796,-564.77939779,0.000179,2]
[402207619,1768601444805,-3703.73790463,0.000179,2]
[402207620,1768601444815,-2338.70119318,0.000179,2]
[402207621,1768601444825,-2338.70119318,0.000179,2]
[402207622,1768601444834,-2323.20577028,0.000179,2]
[402207623,1768601444844,-6479.22197314,0.000179,2]
[402207624,1768601444853,-2338.70119318,0.000179,2]
[402207625,1768601444862,-2338.70119318,0.000179,2]
[402207626,1768601444872,-2338.70119318,0.000179,2]
[402207627,1768601444881,-2338.70119318,0.000179,2]
[402207628,1768601444891,-2338.70119318,0.000179,2]
[402207629,1768601444900,-2338.70119318,0.000179,2]
[402207630,1768601444910,-2338.70119318,0.000179,2]
[402207631,1768601444922,-2338.70119318,0.000179,2]
[402207632,1768601444932,-2338.70119318,0.000179,2]
[402207633,1768601444941,-2338.70119318,0.000179,2]
[402207634,1768601444951,-6776.56895766,0.000179,2]
[402207635,1768601444961,-685.62030484,0.000179,2]
[402207636,1768601444970,-3559.34559818,0.000179,2]
[402207637,1768601444980,-500.0,0.000179,2]
[402207638,1768601444989,-500.0,0.000179,2]
[402207639,1768601444999,-500.0,0.000179,2]
[402207640,1768601445008,-500.0,0.000179,2]
[402207641,1768601445017,-500.0,0.000179,2]
[402207642,1768601445027,-500.0,0.000179,2]
[402207643,1768601445035,-500.0,0.000179,2]
[402207644,1768601445045,-500.0,0.000179,2]
[402207645,1768601445054,-500.0,0.000179,2]
[402207646,1768601445063,-500.0,0.000179,2]
[402207647,1768601445076,-500.0,0.000179,2]
[402207648,1768601445085,-500.0,0.000179,2]
[402207649,1768601445095,-500.0,0.000179,2]
[402207650,1768601445104,-500.0,0.000179,2]
[402207651,1768601445113,-500.0,0.000179,2]
[402207652,1768601445123,-500.0,0.000179,2]
[402207653,1768601445132,-500.0,0.000179,2]
[402207654,1768601445143,-500.0,0.000179,2]
[402207655,1768601445152,-500.0,0.000179,2]
[402207656,1768601445162,-500.0,0.000179,2]
[402207657,1768601445172,-500.0,0.000179,2]
[402207658,1768601445181,-500.0,0.000179,2]
[402207659,1768601445190,-500.0,0.000179,2]
[402207660,1768601445200,-500.0,0.000179,2]
[402207661,1768601445209,-500.0,0.000179,2]
[402207662,1768601445218,-500.0,0.000179,2]
[402207663,1768601445228,-500.0,0.000179,2]
[402207664,1768601445238,-500.0,0.000179,2]
[402207665,1768601445248,-500.0,0.000179,2]
[402207666,1768601445258,-500.0,0.000179,2]
[402207667,1768601445267,-500.0,0.000179,2]
[402207668,1768601445277,-500.0,0.000179,2]
[402207669,1768601445288,-500.0,0.000179,2]
[402207670,1768601445297,-500.0,0.000179,2]
[402207671,1768601445307,-500.0,0.000179,2]
[402207672,1768601445317,-500.0,0.000179,2]
[402207673,1768601445327,-500.0,0.000179,2]
[402207674,1768601445336,-500.0,0.000179,2]
[402207675,1768601445346,-500.0,0.000179,2]
[402207676,1768601445356,-500.0,0.000179,2]
[402207677,1768601445366,-432.15823719,0.000179,2]
[402207678,1768601445375,-150.0,0.00017902,2]
[402207679,1768601445386,-1000.0,0.00017914,2]
[402207680,1768601445396,-150.0,0.00017914,2]
[402207681,1768601445407,-155.53654206,0.00017914,2]
[402207682,1768601445416,-1000.0,0.00017916,2]
[402207683,1768601445427,-500.0,0.00017918,2]
[402207684,1768601445437,-440.0,0.00017918,2]
[402207685,1768601445451,-1000.0,0.00017918,2]
[402207686,1768601445461,-1000.0,0.00017922,2]
[402207687,1768601445471,-2747.2,0.00017924,2]
[402207688,1768601445482,-2747.2,0.00017962,2]
[402207689,1768601445492,-1000.0,0.00017968,2]
[402207690,1768601445502,-700.0,0.0001797,2]
[402207691,1768601445511,-500.0,0.0001797,2]
[402207692,1768601445523,-700.0,0.0001797,2]
[402207693,1768601445534,-500.0,0.0001797,2]
[402207694,1768601445544,-700.0,0.0001797,2]
[402207695,1768601445553,-500.0,0.0001797,2]
[402207696,1768601445563,-1100.0,0.0001797,2]
[402207698,1768601445574,-500.0,0.0001797,2]
[402207699,1768601445584,-500.0,0.0001797,2]
[402207700,1768601445595,-500.0,0.0001797,2]
[402207701,1768601445604,-1000.0,0.00017971,2]
[402207702,1768601445614,-1000.0,0.00017972,2]
[402207703,1768601445624,-1250.25080729,0.00017972,2]
[402207704,1768601445636,-161.53790585,0.00017972,2]
[402207705,1768601445646,-440.0,0.00017972,2]
[402207706,1768601445656,-14603.0,0.00017973,2]
[402207707,1768601445666,-30478.0,0.00017973,2]
[402207708,1768601445676,-500.0,0.00017973,2]
[402207709,1768601445686,-197.50988777,0.00017973,2]
[402207710,1768601445696,-500.0,0.00017973,2]
[402207711,1768601445706,-372.89690242,0.00017973,2]
[402207712,1768601445715,-500.0,0.00017973,2]
[402207713,1768601445725,-150.0,0.00017973,2]
[402207714,1768601445735,-1000.0,0.00017983,2]
[402207715,1768601445745,-5888.0,0.00017984,2]
[402207716,1768601445755,-566.80876335,0.0001799,2]
[402207717,1768601445765,-566.80876335,0.0001799,2]
[402207718,1768601445775,-151.0,0.00017997,2]
[402207719,1768601445786,-150.0,0.00017999,2]
[402207720,1768601445796,-176.82451653,0.00017999,2]
[402207721,1768601445806,-300.0,0.00017999,2]
[402207722,1768601445816,-666.0,0.00017999,2]
[402207723,1768601445825,-300.0,0.00017999,2]
[402207724,1768601445835,-300.0,0.00017999,2]
[402207725,1768601445844,-666.0,0.00017999,2]
[402207726,1768601445854,-300.0,0.00017999,2]
[402207727,1768601445863,-666.0,0.00017999,2]
[402207728,1768601445873,-300.0,0.00017999,2]
[402207729,1768601445883,-300.0,0.00017999,2]
[402207730,1768601445893,-300.0,0.00017999,2]
[402207731,1768601445903,-666.0,0.00017999,2]
[402207732,1768601445913,-150.0,0.00017999,2]
[402207733,1768601445922,-150.0,0.00017999,2]
[402207734,1768601445932,-2008965.35169105,0.00018,2]
[402207735,1768601445944,-194.18,0.00018,7]
[402207736,1768601445954,-4254204.06088962,0.00018,2]
[402207739,1768601446758,-456.61,0.00018,2]
[402207740,1768601447470,-1.7e-07,0.00018,2]
[402207741,1768601447553,-965.1946976,0.00018,2]
[402207742,1768601448628,-23270.04391531,0.00018,2]
[402207743,1768601449855,-6559.0,0.00017587,2]
[402207744,1768601449865,-11876.04350102,0.00018,2]
[402207745,1768601449877,-269.79030303,0.00018,2]
[402207746,1768601449890,-522.25768154,0.00018,2]
[402207747,1768601449910,-280.87,0.00018,2]
[402207748,1768601505124,10000.01,0.00013771,2]
[402207749,1768601505162,10000.01,0.00013771,2]
[402207750,1768601505202,10000.01,0.00013771,2]
[402207751,1768601505243,3212.9672,0.00013771,2]
[402207752,1768601521550,10000.01,0.00013671,2]
[402207753,1768601521580,10000.01,0.00013671,2]
[402207754,1768601521610,10000.01,0.00013671,2]
[402207755,1768601521639,10000.01,0.00013671,2]
[402207756,1768601521668,10000.01,0.00013671,2]
[402207757,1768601521696,10000.01,0.00013671,2]
[402207758,1768601525750,-300.0,0.0001367,2]
[402207759,1768601536524,-6187.0428,0.00013671,2]
[402207760,1768601536643,-10000.01,0.00013671,2]
[402207761,1768601539399,-10000.01,0.00013671,2]
[402207762,1768601539492,-10000.01,0.00013671,2]
[402207763,1768601539580,-10000.01,0.00013671,2]
[402207764,1768601539732,-10000.01,0.00013671,2]
[402207765,1768601539868,-10000.01,0.00013671,2]
[402207766,1768601542791,-10000.01,0.00013671,2]
[402207767,1768601564252,1400.0,0.000139,5]
[402207768,1768601736008,-218.85507464,0.00013621,2]
[402207769,1768601736041,-1703.60059154,0.00013621,2]
[402207770,1768601736080,-6155.09866764,0.00013621,2]
[402207771,1768601736275,-1200.0,0.0001367,2]
[402207772,1768601736522,-150.0,0.0001367,2]
[402207773,1768601736556,-300.0,0.0001367,2]
[402207774,1768601736846,-6700.01,0.00013671,2]
[402207775,1768601736900,-10000.01,0.00013671,2]
[402207776,1768601736988,-10000.01,0.00013671,2]
[402207777,1768601737040,-10000.01,0.00013671,2]
[402207778,1768601737078,-10000.01,0.00013671,2]
[402207779,1768601737112,-10000.01,0.00013671,2]
[402207780,1768601737150,-10000.01,0.00013671,2]
[402207781,1768601737201,-10000.01,0.00013671,2]
[402207782,1768601742139,-10000.01,0.00013671,2]
[402207783,1768601742355,-10000.01,0.00013671,2]
[402207784,1768601742455,-10000.01,0.00013671,2]
[402207785,1768601742733,-10000.01,0.00013671,2]
[402207786,1768601742848,-10000.01,0.00013671,2]
[402207787,1768601743003,-10000.01,0.00013671,2]
[402207788,1768601743175,-10000.01,0.00013671,2]
[402207789,1768601743288,-10000.01,0.00013671,2]
[402207790,1768601743391,-10000.01,0.00013671,2]
[402207791,1768601864389,500.0,0.00030136,120]
[402207792,1768601864619,500.0,0.00030136,120]
[402207793,1768601864954,500.0,0.00030136,120]
[402207794,1768601865124,500.0,0.00030136,120]
[402207795,1768601865397,500.0,0.00030136,120]
[402207796,1768601865659,500.0,0.00030136,120]
[402207797,1768601865874,500.0,0.00030136,120]
[402207798,1768601866129,500.0,0.00030136,120]
[402207799,1768601866374,189.0208148,0.00030136,120]
[402207800,1768601888167,224.165576,7.945e-05,2]
[402207801,1768601962855,-768.69503933,0.00013496,2]
[402207802,1768602008457,-64.75043167,0.00013496,2]
[402207803,1768602008480,-104.87901337,0.00013496,2]
[402207804,1768602013582,-155.41160736,0.00013496,2]
[402207805,1768602016169,-0.70937927,0.00013496,2]
[402207806,1768602016193,-171.33430869,0.00013564,2]
[402207807,1768602017695,-78.66569131,0.00013564,2]
[402207808,1768602017720,-113.69001314,0.00013571,2]
[402207809,1768602094341,3904.38,0.00013398,2]
[402207810,1768602094380,248.715,0.00013398,2]
[402207811,1768602143723,-198.74580285,0.00013571,2]
[402207812,1768602145505,-188.41388948,0.00013571,2]
[402207813,1768602149954,-200.22499774,0.00013571,2]
[402207814,1768602151851,-320.69241555,0.00013571,2]
[402207815,1768602151943,-1478.23288124,0.00013571,2]
[402207816,1768602226436,521.76711876,0.00013571,2]
[402207817,1768602264069,-185.85467007,0.00013571,2]
[402207818,1768602265645,-230.44938673,0.00013571,2]
[402207819,1768602272292,-115.42412444,0.00013571,2]
[402207820,1768602281572,384.57587556,0.00013571,2]
[402207821,1768602297504,4720.40399804,0.00011233,2]
[402207822,1768602297526,5272.46942401,0.00011233,2]
[402207823,1768602297548,5272.46942401,0.00011233,2]
[402207824,1768602297569,4695.37715394,0.00011233,2]
[402207825,1768602307972,-168.63109584,0.0001357,2]
[402207826,1768602310647,-131.36890416,0.0001357,2]
[402207827,1768602310678,-39.43251505,0.0001357,2]
[402207828,1768602312591,-153.41,0.0001357,2]
[402207829,1768602325192,577.09227007,0.000108,2]
[402207830,1768602325214,450.3439821,0.000108,2]
[402207831,1768602335544,4822.12544191,0.0001,2]
[402207832,1768602335567,177.87455809,0.0001,2]
[402207833,1768602357115,-192.35570445,0.00013471,2]
[402207834,1768602357169,-1007.15748495,0.0001357,2]
[402207835,1768602357219,-2531.93722444,0.00013571,2]
[402207836,1768602357544,-4367.7046,0.00013571,2]
[402207837,1768602360205,3495.15889262,8e-05,2]
[402207838,1768602360349,-2297.40551804,0.00013598,2]
[402207839,1768602360398,-4861.45823179,0.00013598,2]
[402207840,1768602360442,-543.74073213,0.00013598,2]
[402207841,1768602360472,-298.66013678,0.00013598,2]
[402207842,1768602360531,-8315.20826218,0.000136,2]
[402207843,1768602363675,300.0,8.8e-05,2]
[402207844,1768602366648,-10000.01,0.000136,2]
[402207845,1768602366776,-10000.01,0.000136,2]
[402207846,1768602386773,-3896.39087384,0.00013571,2]
[402207847,1768602386823,-2207.22825232,0.000136,2]
[402207848,1768602386942,-10000.01,0.000136,2]
[402207849,1768602387075,-10000.01,0.000136,2]
[402207850,1768602389735,-10000.01,0.000136,2]
[402207851,1768602432224,1299.4359733,0.0001305,2]
[402207852,1768602432245,2522.30748912,0.0001305,2]
[402207853,1768602444085,-1266.5968,0.00013571,2]
[402207854,1768602444128,-7466.8164,0.00013571,2]
[402207855,1768602444353,-4194.1035,0.00013571,2]
[402207856,1768602444392,1900.0,0.000139,5]
[402207857,1768602444450,-1611.803,0.00013571,2]
[402207858,1768602444504,-218.85507462,0.00013571,2]
[402207859,1768602444534,-740.9043414,0.00013599,2]
[402207860,1768602444564,-300.0,0.00013599,2]
[402207861,1768602444593,-150.0,0.00013599,2]
[402207862,1768602444903,-7180.49116796,0.000136,2]
[402207863,1768602445778,-10000.01,0.000136,2]
[402207864,1768602445877,-10000.01,0.000136,2]
[402207865,1768602476910,-2500.0,0.00013571,2]
[402207866,1768602476958,-5000.01,0.000136,2]
[402207867,1768602477135,-10000.01,0.000136,2]
[402207868,1768602477273,-10000.01,0.000136,2]
[402207869,1768602477574,-10000.01,0.000136,2]
[402207870,1768602477680,-10000.01,0.000136,2]
[402207871,1768602477782,-10000.01,0.000136,2]
[402207872,1768602477933,-10000.01,0.000136,2]
[402207873,1768602478016,-381.58661126,0.000136,2]
[402207874,1768602478047,-200.0,0.00013663,2]
[402207875,1768602478078,-151.0,0.00013663,2]
[402207876,1768602478110,-151.0,0.00013663,2]
[402207877,1768602478140,-500.0,0.00013663,2]
[402207878,1768602478170,-151.0,0.00013663,2]
[402207879,1768602478201,-500.0,0.00013663,2]
[402207880,1768602478233,-205.06792171,0.00013663,2]
[402207881,1768602478263,-151.0,0.00013663,2]
[402207882,1768602478293,-500.0,0.00013663,2]
[402207883,1768602478324,-500.0,0.00013663,2]
[402207884,1768602478354,-500.0,0.00013663,2]
[402207885,1768602478385,-500.0,0.00013663,2]
[402207886,1768602478414,-500.0,0.00013663,2]
[402207887,1768602479165,-500.0,0.00013663,2]
[402207888,1768602479196,-500.0,0.00013663,2]
[402207889,1768602479227,-500.0,0.00013663,2]
[402207890,1768602479259,-500.0,0.00013663,2]
[402207891,1768602479288,-500.0,0.00013663,2]
[402207892,1768602479319,-500.0,0.00013663,2]
[402207893,1768602479350,-500.0,0.00013663,2]
[402207894,1768602479380,-500.0,0.00013663,2]
[402207895,1768602479410,-500.0,0.00013663,2]
[402207896,1768602479440,-500.0,0.00013663,2]
[402207897,1768602480333,-218.70093406,0.00013663,2]
[402207898,1768602480350,-0.01,0.00013663,2]
[402207899,1768602480446,-281.28906594,0.00013663,2]
[402207900,1768602480480,-151.0,0.00013663,2]
[402207901,1768602480515,-151.0,0.00013663,2]
[402207902,1768602480549,-151.0,0.00013663,2]
[402207903,1768602480585,-151.0,0.00013663,2]
[402207904,1768602480620,-151.0,0.00013663,2]
[402207905,1768602480659,-151.0,0.00013663,2]
[402207906,1768602480694,-151.0,0.00013663,2]
[402207907,1768602480730,-151.0,0.00013663,2]
[402207908,1768602480764,-151.0,0.00013663,2]
[402207909,1768602480801,-151.0,0.00013663,2]
[402207910,1768602480835,-151.0,0.00013663,2]
[402207911,1768602480871,-500.0,0.00013663,2]
[402207912,1768602480904,-200.0,0.00013663,2]
[402207913,1768602480938,-400.17194027,0.0001367,2]
[402207914,1768602480972,-438.49927589,0.0001367,2]
[402207915,1768602481012,-500.0,0.0001367,2]
[402207916,1768602481051,-500.0,0.0001367,2]
[402207917,1768602481091,-500.0,0.0001367,2]
[402207918,1768602481149,-500.0,0.0001367,2]
[402207919,1768602481192,-500.0,0.0001367,2]
[402207920,1768602481231,-500.0,0.0001367,2]
[402207921,1768602481271,-500.0,0.0001367,2]
[402207922,1768602481311,-647.47481171,0.0001367,2]
[402207923,1768602481346,-500.0,0.0001367,2]
[402207924,1768602481382,-261.9542091,0.0001367,2]
[402207925,1768602481414,-500.0,0.0001367,2]
[402207926,1768602481446,-500.0,0.0001367,2]
[402207927,1768602481485,-500.0,0.0001367,2]
[402207928,1768602482375,-38.0894358,0.0001367,2]
[402207929,1768602482395,-181.15195838,0.0001367,2]
[402207930,1768602486945,-166.66,0.00013347,2]
[402207931,1768602486975,-787.25604664,0.000135,2]
[402207932,1768602487007,-166.66,0.00013628,2]
[402207933,1768602487038,-101.94759285,0.0001367,2]
[402207934,1768602487076,-500.0,0.0001367,2]
[402207935,1768602487115,-322.30853285,0.0001367,2]
[402207936,1768602487152,-500.0,0.0001367,2]
[402207937,1768602487184,-250.0,0.0001367,2]
[402207938,1768602487358,-4410.34565532,0.00013671,2]
[402207939,1768602487482,-10000.01,0.00013671,2]
[402207940,1768602487514,-10000.01,0.00013671,2]
[402207941,1768602487558,-10000.01,0.00013671,2]
[402207942,1768602487641,-10000.01,0.00013671,2]
[402207943,1768602487809,-10000.01,0.00013671,2]
[402207944,1768602487960,-10000.01,0.00013671,2]
[402207945,1768602488125,-10000.01,0.00013671,2]
[402207946,1768602493744,-10000.01,0.00013671,2]
[402207947,1768602501583,-10000.01,0.00013671,2]
[402207948,1768602503353,-10000.01,0.00013671,2]
[402207949,1768602503580,-10000.01,0.00013671,2]
[402207950,1768602503746,-10000.01,0.00013671,2]
[402207951,1768602504143,-10000.01,0.00013671,2]
[402207952,1768602504175,-10000.01,0.00013671,2]
[402207953,1768602504203,-10000.01,0.00013671,2]
[402207954,1768602504241,-10000.01,0.00013671,2]
[402207955,1768602507057,-2786.72705183,0.00013571,2]
[402207956,1768602507083,-4426.55589634,0.00013571,2]
[402207957,1768602511778,-10000.01,0.00013671,2]